fUSD/lending_fUSD_20260621
["ID","MTS","AMOUNT","RATE_DAILY","PERIOD"]
[425930966,1782037864000,-4255.92,0.00027945,2]
[425930967,1782037864000,-500.0,0.00027945,2]
[425930969,1782037864000,-500.0,0.00027945,2]
[425930975,1782037864000,-333.64757059,0.00027945,2]
[425930970,1782037864000,-5206.76,0.00027945,2]
[425930972,1782037864000,-500.0,0.00027945,2]
[425930971,1782037864000,-1744.77,0.00027945,2]
[425930968,1782037864000,-239.95808326,0.00027945,2]
[425930995,1782037864000,-608.71,0.00027945,2]
[425930973,1782037864000,-500.0,0.00027945,2]
[425930978,1782037864000,-500.0,0.00027945,2]
[425930977,1782037864000,-1345.44,0.00027945,2]
[425930984,1782037864000,-500.0,0.00027945,2]
[425930982,1782037864000,-500.0,0.00027945,2]
[425930981,1782037864000,-1000.0,0.00027945,2]
[425930979,1782037864000,-500.0,0.00027945,2]
[425930983,1782037864000,-958.6,0.00027945,2]
[425930986,1782037864000,-500.0,0.00027945,2]
[425930980,1782037864000,-500.0,0.00027945,2]
[425930985,1782037864000,-500.0,0.00027945,2]
[425930988,1782037864000,-500.0,0.00027945,2]
[425930974,1782037864000,-757.98,0.00027945,2]
[425931016,1782037864000,-500.0,0.00027945,2]
[425931027,1782037864000,-500.0,0.00027945,2]
[425931018,1782037864000,-500.0,0.00027945,2]
[425931049,1782037864000,-500.0,0.00027945,2]
[425931050,1782037864000,-500.0,0.00027945,2]
[425931043,1782037864000,-500.0,0.00027945,2]
[425931044,1782037864000,-500.0,0.00027945,2]
[425931047,1782037864000,-347.43657631,0.00027945,2]
[425931053,1782037864000,-500.0,0.00027945,2]
[425931055,1782037864000,-500.0,0.00027945,2]
[425931063,1782037864000,-500.0,0.00027945,2]
[425931058,1782037864000,-500.0,0.00027945,2]
[425931054,1782037864000,-500.0,0.00027945,2]
[425931057,1782037864000,-500.0,0.00027945,2]
[425931046,1782037864000,-5030.0,0.00027945,2]
[425931060,1782037864000,-6938.43,0.00027945,2]
[425931056,1782037864000,-6334.76,0.00027945,2]
[425931062,1782037864000,-500.0,0.00027945,2]
[425931061,1782037864000,-500.0,0.00027945,2]
[425931065,1782037864000,-5735.18,0.00027945,2]
[425931064,1782037864000,-746.08,0.00027945,2]
[425931066,1782037864000,-2630.75,0.00027945,2]
[425931017,1782037864000,-500.0,0.00027945,2]
[425931067,1782037864000,-500.0,0.00027945,2]
[425931068,1782037864000,-4885.48,0.00027945,2]
[425931072,1782037864000,-8907.33,0.00027945,2]
[425931071,1782037864000,-500.0,0.00027945,2]
[425931059,1782037864000,-500.0,0.00027945,2]
[425931048,1782037864000,-500.0,0.00027945,2]
[425931069,1782037864000,-560.49,0.00027945,2]
[425931051,1782037864000,-896.49,0.00027945,2]
[425931045,1782037864000,-9364.89,0.00027945,2]
[425931020,1782037864000,-500.0,0.00027945,2]
[425931021,1782037864000,-3874.02,0.00027945,2]
[425931025,1782037864000,-500.0,0.00027945,2]
[425931023,1782037864000,-500.0,0.00027945,2]
[425931022,1782037864000,-500.0,0.00027945,2]
[425931024,1782037864000,-500.0,0.00027945,2]
[425931029,1782037864000,-747.29,0.00027945,2]
[425931031,1782037864000,-3344.59,0.00027945,2]
[425931028,1782037864000,-509.56,0.00027945,2]
[425931030,1782037864000,-500.0,0.00027945,2]
[425931070,1782037864000,-500.0,0.00027945,2]
[425931026,1782037864000,-500.0,0.00027945,2]
[425931034,1782037864000,-500.0,0.00027945,2]
[425931033,1782037864000,-354.65671518,0.00027945,2]
[425931039,1782037864000,-500.0,0.00027945,2]
[425931041,1782037864000,-635.33342118,0.00027945,2]
[425931040,1782037864000,-690.61,0.00027945,2]
[425931052,1782037864000,-6679.24,0.00027945,2]
[425931038,1782037864000,-6091.66,0.00027945,2]
[425931036,1782037864000,-510.08950053,0.00027945,2]
[425931035,1782037864000,-500.0,0.00027945,2]
[425931032,1782037864000,-6285.21,0.00027945,2]
[425931037,1782037864000,-606.62,0.00027945,2]
[425931042,1782037864000,-500.0,0.00027945,2]
[425931093,1782037865000,-500.0,0.00027945,2]
[425931107,1782037865000,-500.0,0.00027945,2]
[425931098,1782037865000,-500.0,0.00027945,2]
[425931100,1782037865000,-1180.04,0.00027945,2]
[425931101,1782037865000,-7163.35,0.00027945,2]
[425931099,1782037865000,-9528.18,0.00027945,2]
[425931103,1782037865000,-500.0,0.00027945,2]
[425931106,1782037865000,-3935.77,0.00027945,2]
[425931102,1782037865000,-242.65716228,0.00027945,2]
[425931120,1782037865000,-500.0,0.00027945,2]
[425931104,1782037865000,-1301.74,0.00027945,2]
[425931108,1782037865000,-500.0,0.00027945,2]
[425931110,1782037865000,-1073.5,0.00027945,2]
[425931109,1782037865000,-922.78,0.00027945,2]
[425931111,1782037865000,-249.72197262,0.00027945,2]
[425931112,1782037865000,-1451.53,0.00027945,2]
[425931116,1782037865000,-500.0,0.00027945,2]
[425931092,1782037865000,-500.0,0.00027945,2]
[425931105,1782037865000,-500.0,0.00027945,2]
[425931094,1782037865000,-4656.76,0.00027945,2]
[425931080,1782037865000,-13019.17,0.00027945,2]
[425931095,1782037865000,-500.0,0.00027945,2]
[425931073,1782037865000,-500.0,0.00027945,2]
[425931074,1782037865000,-7097.95,0.00027945,2]
[425931075,1782037865000,-10103.93,0.00027945,2]
[425931078,1782037865000,-662.83,0.00027945,2]
[425931077,1782037865000,-405.6301871,0.00027945,2]
[425931076,1782037865000,-500.0,0.00027945,2]
[425931079,1782037865000,-500.0,0.00027945,2]
[425931082,1782037865000,-500.0,0.00027945,2]
[425931083,1782037865000,-500.0,0.00027945,2]
[425931081,1782037865000,-543.22508646,0.00027945,2]
[425931085,1782037865000,-10443.29,0.00027945,2]
[425931084,1782037865000,-1501.04,0.00027945,2]
[425931097,1782037865000,-523.3,0.00027945,2]
[425931087,1782037865000,-1115.01,0.00027945,2]
[425931086,1782037865000,-8253.82,0.00027945,2]
[425931088,1782037865000,-4071.99,0.00027945,2]
[425931089,1782037865000,-500.0,0.00027945,2]
[425931091,1782037865000,-500.0,0.00027945,2]
[425931090,1782037865000,-450.19425557,0.00027945,2]
[425931096,1782037865000,-500.0,0.00027945,2]
[425931113,1782037865000,-500.0,0.00027945,2]
[425931114,1782037865000,-500.0,0.00027945,2]
[425931117,1782037865000,-5836.17,0.00027945,2]
[425931144,1782037865000,-500.0,0.00027945,2]
[425931146,1782037865000,-500.0,0.00027945,2]
[425931145,1782037865000,-611.44,0.00027945,2]
[425931147,1782037865000,-500.0,0.00027945,2]
[425931143,1782037865000,-500.0,0.00027945,2]
[425931151,1782037865000,-4906.25,0.00027945,2]
[425931150,1782037865000,-500.0,0.00027945,2]
[425931152,1782037865000,-6319.14,0.00027945,2]
[425931148,1782037865000,-500.0,0.00027945,2]
[425931149,1782037865000,-8742.6,0.00027945,2]
[425931153,1782037865000,-831.38,0.00027945,2]
[425931155,1782037865000,-179.88595093,0.00027945,2]
[425931157,1782037865000,-500.0,0.00027945,2]
[425931156,1782037865000,-500.0,0.00027945,2]
[425931161,1782037865000,-3382.74,0.00027945,2]
[425931158,1782037865000,-798.82,0.00027945,2]
[425931160,1782037865000,-500.0,0.00027945,2]
[425931159,1782037865000,-500.0,0.00027945,2]
[425931115,1782037865000,-9999.22,0.00027945,2]
[425931142,1782037865000,-7741.98,0.00027945,2]
[425931139,1782037865000,-7069.12,0.00027945,2]
[425931154,1782037865000,-521.32,0.00027945,2]
[425931137,1782037865000,-500.0,0.00027945,2]
[425931118,1782037865000,-500.0,0.00027945,2]
[425931136,1782037865000,-3337.66,0.00027945,2]
[425931119,1782037865000,-500.0,0.00027945,2]
[425931121,1782037865000,-500.0,0.00027945,2]
[425931124,1782037865000,-500.0,0.00027945,2]
[425931123,1782037865000,-500.0,0.00027945,2]
[425931125,1782037865000,-1479.66,0.00027945,2]
[425931127,1782037865000,-730.93,0.00027945,2]
[425931126,1782037865000,-500.0,0.00027945,2]
[425931128,1782037865000,-500.0,0.00027945,2]
[425931130,1782037865000,-500.0,0.00027945,2]
[425931129,1782037865000,-500.0,0.00027945,2]
[425931122,1782037865000,-4485.52,0.00027945,2]
[425931133,1782037865000,-869.85,0.00027945,2]
[425931141,1782037865000,-656.66,0.00027945,2]
[425931134,1782037865000,-500.0,0.00027945,2]
[425931132,1782037865000,-500.0,0.00027945,2]
[425931138,1782037865000,-9276.24,0.00027945,2]
[425931131,1782037865000,-500.0,0.00027945,2]
[425931135,1782037865000,-5736.86,0.00027945,2]
[425931140,1782037865000,-403.29947283,0.00027945,2]
[425931192,1782037866000,-500.0,0.00027945,2]
[425931212,1782037866000,-500.0,0.00027945,2]
[425931199,1782037866000,-500.0,0.00027945,2]
[425931198,1782037866000,-500.0,0.00027945,2]
[425931200,1782037866000,-4316.99,0.00027945,2]
[425931195,1782037866000,-6815.25,0.00027945,2]
[425931194,1782037866000,-500.0,0.00027945,2]
[425931190,1782037866000,-3267.69,0.00027945,2]
[425931197,1782037866000,-526.21,0.00027945,2]
[425931202,1782037866000,-500.0,0.00027945,2]
[425931196,1782037866000,-8068.87,0.00027945,2]
[425931201,1782037866000,-500.0,0.00027945,2]
[425931213,1782037866000,-4065.24,0.00027945,2]
[425931206,1782037866000,-500.0,0.00027945,2]
[425931210,1782037866000,-500.0,0.00027945,2]
[425931205,1782037866000,-500.0,0.00027945,2]
[425931211,1782037866000,-500.0,0.00027945,2]
[425931203,1782037866000,-682.33,0.00027945,2]
[425931208,1782037866000,-6422.86,0.00027945,2]
[425931207,1782037866000,-4989.66,0.00027945,2]
[425931209,1782037866000,-500.0,0.00027945,2]
[425931215,1782037866000,-500.0,0.00027945,2]
[425931217,1782037866000,-500.0,0.00027945,2]
[425931218,1782037866000,-1027.88,0.00027945,2]
[425931193,1782037866000,-500.0,0.00027945,2]
[425931204,1782037866000,-500.0,0.00027945,2]
[425931191,1782037866000,-500.0,0.00027945,2]
[425931167,1782037866000,-500.0,0.00027945,2]
[425931184,1782037866000,-650.62,0.00027945,2]
[425931219,1782037866000,-500.0,0.00027945,2]
[425931163,1782037866000,-500.0,0.00027945,2]
[425931164,1782037866000,-3846.12,0.00027945,2]
[425931162,1782037866000,-500.0,0.00027945,2]
[425931168,1782037866000,-1221.43,0.00027945,2]
[425931166,1782037866000,-500.0,0.00027945,2]
[425931172,1782037866000,-500.0,0.00027945,2]
[425931173,1782037866000,-8696.2,0.00027945,2]
[425931165,1782037866000,-500.0,0.00027945,2]
[425931169,1782037866000,-6386.84,0.00027945,2]
[425931175,1782037866000,-500.0,0.00027945,2]
[425931170,1782037866000,-500.0,0.00027945,2]
[425931189,1782037866000,-500.0,0.00027945,2]
[425931176,1782037866000,-4404.74,0.00027945,2]
[425931171,1782037866000,-500.0,0.00027945,2]
[425931174,1782037866000,-624.23,0.00027945,2]
[425931179,1782037866000,-10625.36,0.00027945,2]
[425931187,1782037866000,-500.0,0.00027945,2]
[425931186,1782037866000,-582.18,0.00027945,2]
[425931180,1782037866000,-500.0,0.00027945,2]
[425931181,1782037866000,-500.0,0.00027945,2]
[425931188,1782037866000,-1025.47,0.00027945,2]
[425931178,1782037866000,-4194.76,0.00027945,2]
[425931185,1782037866000,-500.0,0.00027945,2]
[425931182,1782037866000,-500.0,0.00027945,2]
[425931183,1782037866000,-500.0,0.00027945,2]
[425931177,1782037866000,-578.26,0.00027945,2]
[425931214,1782037866000,-500.0,0.00027945,2]
[425931216,1782037866000,-500.0,0.00027945,2]
[425931223,1782037866000,-3597.01,0.00027945,2]
[425931250,1782037866000,-500.0,0.00027945,2]
[425931257,1782037866000,-500.0,0.00027999,2]
[425931255,1782037866000,-5236.41,0.00027945,2]
[425931258,1782037866000,-944.07,0.00028,7]
[425931259,1782037866000,-93670.94595568,0.00028,2]
[425931256,1782037866000,-156.84738482,0.00027947,2]
[425931253,1782037866000,-491.42816863,0.00027945,2]
[425931254,1782037866000,-860.38,0.00027945,2]
[425931261,1782037866000,-2112.512751,0.00028053,7]
[425931262,1782037866000,-2112.512751,0.00028053,7]
[425931272,1782037866000,-14621.52719609,0.000282,2]
[425931271,1782037866000,-14621.52719609,0.000282,2]
[425931252,1782037866000,-3061.09,0.00027945,2]
[425931260,1782037866000,-14573.2893316,0.00028053,2]
[425931266,1782037866000,-15415.0193984,0.00028119,2]
[425931265,1782037866000,-657.79550697,0.00028119,2]
[425931264,1782037866000,-2112.512751,0.00028053,7]
[425931269,1782037866000,-500.0,0.00028199,2]
[425931270,1782037866000,-14621.5271961,0.000282,2]
[425931267,1782037866000,-220.25420691,0.00028179,2]
[425931268,1782037866000,-152.0,0.00028191,4]
[425931273,1782037866000,-500.0,0.00028218,2]
[425931276,1782037866000,-644.98,0.00028218,2]
[425931275,1782037866000,-500.0,0.00028218,2]
[425931274,1782037866000,-500.0,0.00028218,2]
[425931221,1782037866000,-500.0,0.00027945,2]
[425931263,1782037866000,-2112.512751,0.00028053,7]
[425931251,1782037866000,-500.0,0.00027945,2]
[425931277,1782037866000,-500.0,0.00028218,2]
[425931249,1782037866000,-500.0,0.00027945,2]
[425931248,1782037866000,-500.0,0.00027945,2]
[425931224,1782037866000,-500.0,0.00027945,2]
[425931278,1782037866000,-2151.96,0.00028218,2]
[425931222,1782037866000,-4764.69,0.00027945,2]
[425931225,1782037866000,-1155.12,0.00027945,2]
[425931226,1782037866000,-500.0,0.00027945,2]
[425931227,1782037866000,-4040.17,0.00027945,2]
[425931230,1782037866000,-832.36,0.00027945,2]
[425931228,1782037866000,-500.0,0.00027945,2]
[425931229,1782037866000,-500.0,0.00027945,2]
[425931232,1782037866000,-500.0,0.00027945,2]
[425931234,1782037866000,-942.63,0.00027945,2]
[425931231,1782037866000,-500.0,0.00027945,2]
[425931220,1782037866000,-500.0,0.00027945,2]
[425931236,1782037866000,-500.0,0.00027945,2]
[425931233,1782037866000,-829.45,0.00027945,2]
[425931245,1782037866000,-508.83,0.00027945,2]
[425931243,1782037866000,-500.0,0.00027945,2]
[425931238,1782037866000,-2636.35,0.00027945,2]
[425931242,1782037866000,-494.55648082,0.00027945,2]
[425931237,1782037866000,-500.0,0.00027945,2]
[425931240,1782037866000,-500.0,0.00027945,2]
[425931244,1782037866000,-4259.26,0.00027945,2]
[425931241,1782037866000,-597.79,0.00027945,2]
[425931247,1782037866000,-2524.57,0.00027945,2]
[425931235,1782037866000,-1696.94,0.00027945,2]
[425931246,1782037866000,-500.0,0.00027945,2]
[425931239,1782037866000,-500.0,0.00027945,2]
[425931318,1782037867000,-500.0,0.00028219,2]
[425931316,1782037867000,-500.0,0.00028219,2]
[425931314,1782037867000,-500.0,0.00028219,2]
[425931315,1782037867000,-500.0,0.00028219,2]
[425931311,1782037867000,-500.0,0.00028219,2]
[425931312,1782037867000,-500.0,0.00028219,2]
[425931308,1782037867000,-773.81,0.00028219,2]
[425931317,1782037867000,-500.0,0.00028219,2]
[425931309,1782037867000,-500.0,0.00028219,2]
[425931313,1782037867000,-500.0,0.00028219,2]
[425931310,1782037867000,-500.0,0.00028219,2]
[425931325,1782037867000,-500.0,0.00028219,2]
[425931320,1782037867000,-500.0,0.00028219,2]
[425931319,1782037867000,-500.0,0.00028219,2]
[425931322,1782037867000,-500.0,0.00028219,2]
[425931321,1782037867000,-500.0,0.00028219,2]
[425931323,1782037867000,-500.0,0.00028219,2]
[425931327,1782037867000,-500.0,0.00028219,2]
[425931330,1782037867000,-500.0,0.00028219,2]
[425931328,1782037867000,-500.0,0.00028219,2]
[425931326,1782037867000,-647.36493611,0.00028219,2]
[425931329,1782037867000,-500.0,0.00028219,2]
[425931306,1782037867000,-500.0,0.00028219,2]
[425931334,1782037867000,-500.0,0.00028219,2]
[425931324,1782037867000,-500.0,0.00028219,2]
[425931307,1782037867000,-500.0,0.00028219,2]
[425931288,1782037867000,-9938.39,0.00028218,2]
[425931302,1782037867000,-500.0,0.00028218,2]
[425931333,1782037867000,-500.0,0.00028219,2]
[425931282,1782037867000,-4510.31,0.00028218,2]
[425931283,1782037867000,-7986.83,0.00028218,2]
[425931279,1782037867000,-3766.43,0.00028218,2]
[425931281,1782037867000,-3324.04,0.00028218,2]
[425931280,1782037867000,-5328.39,0.00028218,2]
[425931287,1782037867000,-4096.63,0.00028218,2]
[425931294,1782037867000,-8988.97,0.00028218,2]
[425931290,1782037867000,-4086.22,0.00028218,2]
[425931285,1782037867000,-500.0,0.00028218,2]
[425931291,1782037867000,-151.0,0.00028218,7]
[425931286,1782037867000,-500.0,0.00028218,2]
[425931289,1782037867000,-500.0,0.00028218,2]
[425931292,1782037867000,-151.0,0.00028218,7]
[425931293,1782037867000,-151.0,0.00028218,7]
[425931284,1782037867000,-698.7,0.00028218,2]
[425931296,1782037867000,-500.0,0.00028218,2]
[425931295,1782037867000,-6020.43,0.00028218,2]
[425931303,1782037867000,-413.0,0.00028219,2]
[425931297,1782037867000,-516.95,0.00028218,2]
[425931304,1782037867000,-500.0,0.00028219,2]
[425931301,1782037867000,-3922.95,0.00028218,2]
[425931300,1782037867000,-500.0,0.00028218,2]
[425931299,1782037867000,-500.0,0.00028218,2]
[425931305,1782037867000,-282.49604,0.00028219,2]
[425931298,1782037867000,-500.0,0.00028218,2]
[425931331,1782037867000,-500.0,0.00028219,2]
[425931339,1782037867000,-500.0,0.00028219,2]
[425931335,1782037867000,-500.0,0.00028219,2]
[425931363,1782037867000,-520.41,0.00028219,2]
[425931368,1782037867000,-500.0,0.00028219,2]
[425931370,1782037867000,-500.0,0.00028219,2]
[425931365,1782037867000,-500.0,0.00028219,2]
[425931369,1782037867000,-500.0,0.00028219,2]
[425931367,1782037867000,-500.0,0.00028219,2]
[425931371,1782037867000,-500.0,0.00028219,2]
[425931366,1782037867000,-722.68,0.00028219,2]
[425931373,1782037867000,-612.0,0.00028219,2]
[425931375,1782037867000,-567.82,0.00028219,2]
[425931376,1782037867000,-500.0,0.00028219,2]
[425931379,1782037867000,-500.0,0.00028219,2]
[425931374,1782037867000,-500.0,0.00028219,2]
[425931377,1782037867000,-622.17253193,0.00028219,2]
[425931378,1782037867000,-500.0,0.00028219,2]
[425931382,1782037867000,-500.0,0.00028219,2]
[425931383,1782037867000,-500.0,0.00028219,2]
[425931380,1782037867000,-500.0,0.00028219,2]
[425931381,1782037867000,-500.0,0.00028219,2]
[425931385,1782037867000,-509.99419187,0.00028219,2]
[425931332,1782037867000,-500.0,0.00028219,2]
[425931386,1782037867000,-500.0,0.00028219,2]
[425931387,1782037867000,-527.08,0.00028219,2]
[425931388,1782037867000,-500.0,0.00028219,2]
[425931389,1782037867000,-500.0,0.00028219,2]
[425931364,1782037867000,-536.39360677,0.00028219,2]
[425931372,1782037867000,-500.0,0.00028219,2]
[425931384,1782037867000,-500.0,0.00028219,2]
[425931362,1782037867000,-500.0,0.00028219,2]
[425931361,1782037867000,-500.0,0.00028219,2]
[425931348,1782037867000,-533.23,0.00028219,2]
[425931347,1782037867000,-500.0,0.00028219,2]
[425931337,1782037867000,-500.0,0.00028219,2]
[425931340,1782037867000,-500.0,0.00028219,2]
[425931338,1782037867000,-500.0,0.00028219,2]
[425931346,1782037867000,-500.0,0.00028219,2]
[425931342,1782037867000,-500.0,0.00028219,2]
[425931343,1782037867000,-500.0,0.00028219,2]
[425931344,1782037867000,-529.47,0.00028219,2]
[425931345,1782037867000,-500.0,0.00028219,2]
[425931341,1782037867000,-500.0,0.00028219,2]
[425931336,1782037867000,-500.0,0.00028219,2]
[425931349,1782037867000,-500.0,0.00028219,2]
[425931351,1782037867000,-500.0,0.00028219,2]
[425931354,1782037867000,-500.0,0.00028219,2]
[425931357,1782037867000,-500.0,0.00028219,2]
[425931358,1782037867000,-500.0,0.00028219,2]
[425931360,1782037867000,-1024.95,0.00028219,2]
[425931350,1782037867000,-500.0,0.00028219,2]
[425931353,1782037867000,-714.98,0.00028219,2]
[425931352,1782037867000,-509.07,0.00028219,2]
[425931355,1782037867000,-500.0,0.00028219,2]
[425931356,1782037867000,-500.0,0.00028219,2]
[425931359,1782037867000,-593.86,0.00028219,2]
[425931416,1782037868000,-500.0,0.00028219,2]
[425931425,1782037868000,-500.0,0.00028219,2]
[425931413,1782037868000,-795.25,0.00028219,2]
[425931415,1782037868000,-500.0,0.00028219,2]
[425931414,1782037868000,-500.0,0.00028219,2]
[425931419,1782037868000,-500.0,0.00028219,2]
[425931418,1782037868000,-500.0,0.00028219,2]
[425931417,1782037868000,-500.0,0.00028219,2]
[425931422,1782037868000,-500.0,0.00028219,2]
[425931423,1782037868000,-500.0,0.00028219,2]
[425931427,1782037868000,-500.0,0.00028219,2]
[425931424,1782037868000,-500.0,0.00028219,2]
[425931428,1782037868000,-500.0,0.00028219,2]
[425931429,1782037868000,-500.0,0.00028219,2]
[425931430,1782037868000,-760.34,0.00028219,2]
[425931432,1782037868000,-501.12,0.00028219,2]
[425931433,1782037868000,-500.0,0.00028219,2]
[425931436,1782037868000,-500.0,0.00028219,2]
[425931409,1782037868000,-500.0,0.00028219,2]
[425931426,1782037868000,-500.0,0.00028219,2]
[425931420,1782037868000,-705.26,0.00028219,2]
[425931401,1782037868000,-672.23,0.00028219,2]
[425931412,1782037868000,-613.31,0.00028219,2]
[425931435,1782037868000,-500.0,0.00028219,2]
[425931393,1782037868000,-500.0,0.00028219,2]
[425931394,1782037868000,-500.0,0.00028219,2]
[425931395,1782037868000,-500.0,0.00028219,2]
[425931392,1782037868000,-500.0,0.00028219,2]
[425931390,1782037868000,-500.0,0.00028219,2]
[425931391,1782037868000,-500.0,0.00028219,2]
[425931396,1782037868000,-500.0,0.00028219,2]
[425931408,1782037868000,-500.0,0.00028219,2]
[425931398,1782037868000,-495.60117996,0.00028219,2]
[425931403,1782037868000,-512.6,0.00028219,2]
[425931399,1782037868000,-671.4,0.00028219,2]
[425931400,1782037868000,-500.0,0.00028219,2]
[425931405,1782037868000,-500.0,0.00028219,2]
[425931402,1782037868000,-508.75,0.00028219,2]
[425931397,1782037868000,-500.0,0.00028219,2]
[425931406,1782037868000,-665.42,0.00028219,2]
[425931404,1782037868000,-500.0,0.00028219,2]
[425931407,1782037868000,-1403.38,0.00028219,2]
[425931410,1782037868000,-500.0,0.00028219,2]
[425931411,1782037868000,-500.0,0.00028219,2]
[425931421,1782037868000,-579.9771124,0.00028219,2]
[425931434,1782037868000,-500.0,0.00028219,2]
[425931431,1782037868000,-538.31,0.00028219,2]
[425931440,1782037868000,-794.81,0.00028219,2]
[425931463,1782037868000,-500.0,0.00028219,2]
[425931462,1782037868000,-500.0,0.00028219,2]
[425931461,1782037868000,-500.0,0.00028219,2]
[425931467,1782037868000,-500.0,0.00028219,2]
[425931468,1782037868000,-500.0,0.00028219,2]
[425931469,1782037868000,-529.79,0.00028219,2]
[425931471,1782037868000,-500.0,0.00028219,2]
[425931470,1782037868000,-500.0,0.00028219,2]
[425931475,1782037868000,-500.0,0.00028219,2]
[425931466,1782037868000,-973.68,0.00028219,2]
[425931472,1782037868000,-500.0,0.00028219,2]
[425931476,1782037868000,-500.0,0.00028219,2]
[425931473,1782037868000,-509.25,0.00028219,2]
[425931474,1782037868000,-4661.92,0.00028219,2]
[425931479,1782037868000,-500.0,0.00028219,2]
[425931480,1782037868000,-540.67,0.00028219,2]
[425931482,1782037868000,-500.0,0.00028219,2]
[425931481,1782037868000,-500.0,0.00028219,2]
[425931483,1782037868000,-741.11,0.00028219,2]
[425931437,1782037868000,-500.0,0.00028219,2]
[425931477,1782037868000,-500.0,0.00028219,2]
[425931465,1782037868000,-500.0,0.00028219,2]
[425931478,1782037868000,-500.0,0.00028219,2]
[425931460,1782037868000,-500.0,0.00028219,2]
[425931442,1782037868000,-500.0,0.00028219,2]
[425931464,1782037868000,-683.19,0.00028219,2]
[425931441,1782037868000,-500.0,0.00028219,2]
[425931445,1782037868000,-500.0,0.00028219,2]
[425931443,1782037868000,-935.29,0.00028219,2]
[425931439,1782037868000,-500.0,0.00028219,2]
[425931444,1782037868000,-1098.71,0.00028219,2]
[425931438,1782037868000,-629.24,0.00028219,2]
[425931447,1782037868000,-500.0,0.00028219,2]
[425931448,1782037868000,-472.5707891,0.00028219,2]
[425931446,1782037868000,-500.0,0.00028219,2]
[425931452,1782037868000,-500.0,0.00028219,2]
[425931457,1782037868000,-500.0,0.00028219,2]
[425931454,1782037868000,-500.0,0.00028219,2]
[425931453,1782037868000,-571.62,0.00028219,2]
[425931450,1782037868000,-500.0,0.00028219,2]
[425931456,1782037868000,-500.0,0.00028219,2]
[425931451,1782037868000,-500.0,0.00028219,2]
[425931455,1782037868000,-500.0,0.00028219,2]
[425931449,1782037868000,-500.0,0.00028219,2]
[425931459,1782037868000,-500.0,0.00028219,2]
[425931458,1782037868000,-500.0,0.00028219,2]
[425931515,1782037869000,-500.0,0.00028219,2]
[425931520,1782037869000,-610.84,0.00028219,2]
[425931521,1782037869000,-500.0,0.00028219,2]
[425931518,1782037869000,-500.0,0.00028219,2]
[425931522,1782037869000,-500.0,0.00028219,2]
[425931524,1782037869000,-500.0,0.00028219,2]
[425931516,1782037869000,-500.0,0.00028219,2]
[425931523,1782037869000,-500.0,0.00028219,2]
[425931514,1782037869000,-816.63,0.00028219,2]
[425931519,1782037869000,-500.0,0.00028219,2]
[425931517,1782037869000,-500.0,0.00028219,2]